fUSD/lending_fUSD_20250120
["ID","MTS","AMOUNT","RATE_DAILY","PERIOD"]
[349674577,1737369041028,-500.0,0.00020582,2]
[349674578,1737369041037,-500.0,0.00020582,2]
[349674579,1737369041046,-715.57,0.00020582,2]
[349674580,1737369041055,-500.0,0.00020582,2]
[349674581,1737369041064,-500.0,0.00020582,2]
[349674582,1737369041073,-500.0,0.00020582,2]
[349674583,1737369041083,-831.47,0.00020582,2]
[349674584,1737369041092,-500.0,0.00020582,2]
[349674585,1737369041101,-589.09824924,0.00020582,2]
[349674586,1737369041110,-500.0,0.00020582,2]
[349674587,1737369041119,-500.0,0.00020582,2]
[349674588,1737369041128,-500.0,0.00020582,2]
[349674589,1737369041138,-512.06085558,0.00020582,2]
[349674590,1737369041147,-500.0,0.00020582,2]
[349674591,1737369041156,-500.0,0.00020582,2]
[349674592,1737369041166,-500.0,0.00020582,2]
[349674593,1737369041175,-504.72,0.00020582,2]
[349674594,1737369041185,-500.0,0.00020582,2]
[349674595,1737369041194,-500.0,0.00020582,2]
[349674596,1737369041203,-500.0,0.00020582,2]
[349674597,1737369041212,-500.0,0.00020582,2]
[349674598,1737369041221,-770.52,0.00020582,2]
[349674599,1737369041232,-600.0,0.00020582,2]
[349674600,1737369041241,-648.29,0.00020582,2]
[349674601,1737369041251,-500.0,0.00020582,2]
[349674602,1737369041260,-500.0,0.00020582,2]
[349674603,1737369041269,-500.0,0.00020582,2]
[349674604,1737369041279,-500.0,0.00020582,2]
[349674605,1737369041288,-500.0,0.00020582,2]
[349674606,1737369041297,-632.43,0.00020582,2]
[349674607,1737369041306,-500.0,0.00020582,2]
[349674608,1737369041316,-500.0,0.00020582,2]
[349674609,1737369041325,-500.0,0.00020582,2]
[349674610,1737369041335,-500.0,0.00020582,2]
[349674611,1737369041346,-240.22347194,0.00020582,2]
[349674612,1737369041355,-190.37833919,0.00020582,2]
[349674613,1737369041365,-500.0,0.00020582,2]
[349674614,1737369041375,-500.0,0.00020582,2]
[349674615,1737369041384,-500.0,0.00020582,2]
[349674616,1737369041393,-500.0,0.00020582,2]
[349674617,1737369041403,-500.0,0.00020582,2]
[349674618,1737369041412,-500.0,0.00020582,2]
[349674619,1737369041421,-500.0,0.00020582,2]
[349674620,1737369041431,-559.16,0.00020582,2]
[349674621,1737369041442,-500.0,0.00020582,2]
[349674622,1737369041453,-500.0,0.00020582,2]
[349674623,1737369041462,-500.0,0.00020582,2]
[349674624,1737369041472,-500.0,0.00020582,2]
[349674625,1737369041482,-500.0,0.00020582,2]
[349674626,1737369041491,-500.0,0.00020582,2]
[349674627,1737369041500,-500.0,0.00020582,2]
[349674628,1737369041510,-500.0,0.00020582,2]
[349674629,1737369041519,-513.40232902,0.00020582,2]
[349674630,1737369041529,-500.0,0.00020582,2]
[349674631,1737369041538,-500.0,0.00020582,2]
[349674632,1737369041548,-1001.74,0.00020582,2]
[349674633,1737369041557,-200.0,0.00020582,2]
[349674634,1737369041566,-500.0,0.00020582,2]
[349674635,1737369041575,-500.0,0.00020582,2]
[349674636,1737369041584,-500.0,0.00020582,2]
[349674637,1737369041593,-500.0,0.00020582,2]
[349674638,1737369041602,-1317.41,0.00020582,2]
[349674639,1737369041612,-504.48174321,0.00020582,2]
[349674640,1737369041621,-500.0,0.00020582,2]
[349674641,1737369041630,-517.26360986,0.00020582,2]
[349674642,1737369041640,-500.0,0.00020582,2]
[349674643,1737369041650,-1515.52,0.00020582,2]
[349674644,1737369041659,-589.13,0.00020582,2]
[349674645,1737369041669,-500.0,0.00020582,2]
[349674646,1737369041681,-500.0,0.00020582,2]
[349674647,1737369041692,-564.81,0.00020582,2]
[349674648,1737369041702,-500.0,0.00020582,2]
[349674649,1737369041711,-1000.0,0.00020582,2]
[349674650,1737369041720,-500.0,0.00020582,2]
[349674651,1737369041730,-522.92,0.00020582,2]
[349674652,1737369041739,-500.0,0.00020582,2]
[349674653,1737369041748,-500.0,0.00020582,2]
[349674654,1737369041758,-500.0,0.00020582,2]
[349674655,1737369041767,-500.0,0.00020582,2]
[349674656,1737369041776,-500.0,0.00020582,2]
[349674657,1737369041785,-500.0,0.00020582,2]
[349674658,1737369041795,-500.0,0.00020582,2]
[349674659,1737369041804,-274.15627909,0.00020582,2]
[349674660,1737369041813,-500.0,0.00020582,2]
[349674661,1737369041823,-450.74021859,0.00020582,2]
[349674662,1737369041832,-500.0,0.00020582,2]
[349674663,1737369041841,-500.0,0.00020582,2]
[349674664,1737369041851,-500.0,0.00020582,2]
[349674665,1737369041859,-500.0,0.00020582,2]
[349674666,1737369041869,-500.0,0.00020582,2]
[349674667,1737369041878,-500.0,0.00020582,2]
[349674668,1737369041888,-597.45316965,0.00020582,2]
[349674669,1737369041897,-500.0,0.00020582,2]
[349674670,1737369041907,-2030.33,0.00020582,2]
[349674671,1737369041916,-500.0,0.00020582,2]
[349674672,1737369041928,-500.0,0.00020582,2]
[349674673,1737369041938,-500.0,0.00020582,2]
[349674674,1737369041949,-500.0,0.00020582,2]
[349674675,1737369041958,-581.22117344,0.00020582,2]
[349674676,1737369041968,-500.0,0.00020582,2]
[349674677,1737369041977,-651.66,0.00020582,2]
[349674678,1737369041987,-500.0,0.00020582,2]
[349674679,1737369041996,-1063.06,0.00020582,2]
[349674680,1737369042005,-500.0,0.00020582,2]
[349674681,1737369042014,-500.0,0.00020582,2]
[349674682,1737369042023,-511.73,0.00020582,2]
[349674683,1737369042035,-500.0,0.00020582,2]
[349674684,1737369042045,-500.0,0.00020582,2]
[349674685,1737369042054,-500.0,0.00020582,2]
[349674686,1737369042063,-500.0,0.00020582,2]
[349674687,1737369042072,-500.0,0.00020582,2]
[349674688,1737369042081,-500.0,0.00020582,2]
[349674689,1737369042091,-500.0,0.00020582,2]
[349674690,1737369042101,-500.0,0.00020582,2]
[349674691,1737369042111,-500.0,0.00020582,2]
[349674692,1737369042121,-500.0,0.00020582,2]
[349674693,1737369042130,-510.72815144,0.00020582,2]
[349674694,1737369042141,-500.0,0.00020582,2]
[349674695,1737369042150,-500.0,0.00020582,2]
[349674696,1737369042162,-500.0,0.00020582,2]
[349674697,1737369042172,-500.0,0.00020582,2]
[349674698,1737369042182,-500.0,0.00020582,2]
[349674699,1737369042191,-501.97665642,0.00020582,2]
[349674700,1737369042200,-500.0,0.00020582,2]
[349674701,1737369042209,-500.0,0.00020582,2]
[349674702,1737369042217,-500.0,0.00020582,2]
[349674703,1737369042227,-476.24142779,0.00020582,2]
[349674704,1737369042236,-500.0,0.00020582,2]
[349674705,1737369042245,-479.63908879,0.00020582,2]
[349674706,1737369042254,-500.0,0.00020582,2]
[349674707,1737369042263,-570.71387508,0.00020582,2]
[349674708,1737369042272,-500.0,0.00020582,2]
[349674709,1737369042281,-500.0,0.00020582,2]
[349674710,1737369042290,-500.0,0.00020582,2]
[349674711,1737369042299,-500.0,0.00020582,2]
[349674712,1737369042309,-500.0,0.00020582,2]
[349674713,1737369042318,-500.0,0.00020582,2]
[349674714,1737369042327,-500.0,0.00020582,2]
[349674715,1737369042337,-500.0,0.00020582,2]
[349674716,1737369042346,-500.0,0.00020582,2]
[349674717,1737369042355,-640.34,0.00020582,2]
[349674718,1737369042365,-500.0,0.00020582,2]
[349674721,1737369042479,-838.81,0.00020582,2]
[349674723,1737369042489,-500.0,0.00020582,2]
[349674725,1737369042498,-500.0,0.00020582,2]
[349674727,1737369042507,-928.97,0.00020582,2]
[349674729,1737369042517,-500.0,0.00020582,2]
[349674731,1737369042527,-151.0,0.00020583,7]
[349674733,1737369042536,-151.0,0.00020583,7]
[349674734,1737369042546,-151.0,0.00020583,7]
[349674736,1737369042555,-151.0,0.00020583,7]
[349674738,1737369042564,-151.0,0.00020583,2]
[349674739,1737369042573,-151.0,0.00020583,2]
[349674740,1737369042583,-151.0,0.00020583,2]
[349674741,1737369042591,-151.0,0.00020583,2]
[349674742,1737369042600,-151.0,0.00020583,2]
[349674743,1737369042610,-477.956817,0.00020583,2]
[349674744,1737369042619,-477.956817,0.00020583,2]
[349674745,1737369042628,-151.0,0.00020583,2]
[349674746,1737369042637,-151.0,0.00020583,2]
[349674747,1737369042647,-151.0,0.00020583,2]
[349674748,1737369042656,-151.0,0.00020583,2]
[349674749,1737369042666,-151.0,0.00020583,2]
[349674750,1737369042675,-151.0,0.00020583,2]
[349674751,1737369042685,-151.0,0.00020583,2]
[349674752,1737369042698,-151.0,0.00020583,2]
[349674753,1737369042708,-151.0,0.00020583,2]
[349674754,1737369042718,-151.0,0.00020583,2]
[349674755,1737369042727,-151.0,0.00020583,2]
[349674756,1737369042736,-90277.25223517,0.00020583,2]
[349674757,1737369042746,-264.30585827,0.0002059,2]
[349674758,1737369042755,-310.45502609,0.00020591,2]
[349674759,1737369042765,-3098.96816625,0.00020639,2]
[349674760,1737369042775,-264.30585827,0.00020659,2]
[349674761,1737369042785,-151.54548789,0.00020665,2]
[349674762,1737369042794,-310.45502609,0.00020691,2]
[349674763,1737369042804,-2379.0,0.000207,2]
[349674764,1737369042814,-500.0,0.00020721,2]
[349674765,1737369042824,-264.30585827,0.00020728,2]
[349674766,1737369042833,-150.0,0.00020739,2]
[349674767,1737369042843,-150.0,0.00020747,2]
[349674768,1737369042853,-1000.0,0.00020752,2]
[349674769,1737369042862,-150.0,0.00020753,2]
[349674770,1737369042871,-150.0,0.00020753,2]
[349674771,1737369042880,-23012.7102,0.00020756,2]
[349674772,1737369042890,-150.0,0.00020762,2]
[349674773,1737369042900,-150.0,0.00020765,2]
[349674774,1737369042909,-150.0,0.00020768,2]
[349674775,1737369042918,-200.0,0.0002077,3]
[349674776,1737369042929,-500.0,0.00020776,2]
[349674777,1737369042938,-150.0,0.00020781,2]
[349674778,1737369042948,-227.22860106,0.00020783,2]
[349674779,1737369042958,-67139.45850816,0.00020784,2]
[349674780,1737369042967,-150.0,0.00020785,2]
[349674781,1737369042976,-150.0,0.00020786,2]
[349674782,1737369042986,-456.10525869,0.00020787,2]
[349674783,1737369042995,-227.22860106,0.00020787,2]
[349674784,1737369043004,-549.12571319,0.0002079,2]
[349674785,1737369043013,-310.45502609,0.00020792,2]
[349674786,1737369043023,-934.97264779,0.00020793,2]
[349674787,1737369043032,-396.63325434,0.00020795,2]
[349674788,1737369043041,-1954.32870542,0.00020796,2]
[349674789,1737369043051,-3098.96816625,0.00020796,2]
[349674790,1737369043060,-264.30585827,0.00020797,2]
[349674791,1737369043069,-1980.62439986,0.00020797,2]
[349674792,1737369043078,-1338.34440375,0.00020797,2]
[349674793,1737369043088,-227.22860106,0.00020798,2]
[349674794,1737369043098,-549.12571319,0.00020798,2]
[349674795,1737369043108,-2324.6148033,0.000208,2]
[349674796,1737369043117,-313.37092882,0.00020801,2]
[349674797,1737369043127,-67139.45850816,0.00020801,2]
[349674798,1737369043136,-200.0,0.00020801,2]
[349674799,1737369043145,-902.1833062,0.00020802,2]
[349674800,1737369043155,-2196.50285275,0.00020802,2]
[349674801,1737369043165,-479.91455729,0.00020802,2]
[349674802,1737369043174,-279.56024052,0.00020803,2]
[349674804,1737369043185,-313.37092882,0.00020803,2]
[349674806,1737369043194,-369.83128676,0.00020804,2]
[349674807,1737369043203,-1000.0,0.00020807,2]
[349674808,1737369043212,-2196.50285275,0.00020809,2]
[349674809,1737369043221,-11214.57566427,0.00020812,2]
[349674810,1737369043230,-152.0,0.00020813,3]
[349674811,1737369043240,-150.0,0.00020814,2]
[349674812,1737369043250,-568.07150265,0.00020815,2]
[349674813,1737369043259,-37865.69311491,0.00020815,2]
[349674814,1737369043269,-2196.50285275,0.00020816,2]
[349674815,1737369043279,-549.12571319,0.00020817,2]
[349674816,1737369043288,-902.1833062,0.0002082,2]
[349674817,1737369043297,-456.10525869,0.0002082,2]
[349674818,1737369043306,-902.1833062,0.00020821,2]
[349674819,1737369043315,-200.0,0.00020823,2]
[349674820,1737369043326,-902.1833062,0.00020824,2]
[349674821,1737369043336,-150.0,0.00020825,2]
[349674822,1737369043346,-150.0,0.00020826,2]
[349674823,1737369043356,-1107.20131181,0.00020827,2]
[349674824,1737369043365,-1980.62439986,0.00020828,2]
[349674825,1737369043375,-549.12571319,0.00020829,2]
[349674826,1737369043384,-11214.57566427,0.00020829,2]
[349674827,1737369043392,-2196.50285275,0.00020831,2]
[349674828,1737369043402,-500.0,0.00020831,2]
[349674829,1737369043411,-20064.95957916,0.00020831,2]
[349674830,1737369043420,-1954.32870542,0.00020832,2]
[349674831,1737369043430,-11214.57566427,0.00020832,2]
[349674832,1737369043447,-1980.62439986,0.00020833,2]
[349674833,1737369043464,-1338.34440375,0.00020836,2]
[349674834,1737369043477,-1338.34440375,0.00020836,2]
[349674835,1737369043492,-2745.62856594,0.00020838,2]
[349674836,1737369043506,-369.83128676,0.0002084,2]
[349674837,1737369043522,-20064.95957916,0.00020841,2]
[349674838,1737369043537,-150.0,0.00020842,2]
[349674839,1737369043549,-250.94048409,0.00020842,2]
[349674840,1737369043560,-934.97264779,0.00020844,2]
[349674841,1737369043574,-1107.20131181,0.00020847,2]
[349674842,1737369043587,-568.07150265,0.00020848,2]
[349674843,1737369043601,-227.22860106,0.00020848,2]
[349674844,1737369043615,-151.54548789,0.00020849,2]
[349674845,1737369043630,-549.12571319,0.00020852,2]
[349674846,1737369043643,-37865.69311491,0.00020854,2]
[349674847,1737369043658,-151.0,0.00020855,2]
[349674848,1737369043671,-151.0,0.00020855,2]
[349674850,1737369043684,-153.236796,0.00020855,2]
[349674851,1737369043697,-151.0,0.00020855,2]
[349674852,1737369043711,-166.048568,0.00020855,2]
[349674853,1737369043725,-500.0,0.00020855,2]
[349674854,1737369043738,-164.512187,0.00020855,2]
[349674855,1737369043750,-151.0,0.00020855,2]
[349674856,1737369043762,-500.0,0.00020855,2]
[349674857,1737369043774,-500.0,0.00020855,2]
[349674858,1737369043790,-500.0,0.00020855,2]
[349674859,1737369043801,-500.0,0.00020855,2]
[349674860,1737369043811,-500.0,0.00020855,2]
[349674861,1737369043824,-575.37,0.00020855,2]
[349674862,1737369043838,-500.0,0.00020855,2]
[349674863,1737369043849,-500.0,0.00020855,2]
[349674864,1737369043860,-566.09,0.00020855,2]
[349674865,1737369043872,-500.0,0.00020855,2]
[349674866,1737369043884,-500.0,0.00020855,2]
[349674867,1737369043895,-511.09,0.00020855,2]
[349674868,1737369043907,-151.0,0.00020855,2]
[349674869,1737369043919,-151.0,0.00020855,2]
[349674870,1737369043931,-500.0,0.00020855,2]
[349674871,1737369043943,-151.0,0.00020855,2]
[349674872,1737369043955,-151.0,0.00020855,2]
[349674873,1737369043968,-500.0,0.00020855,2]
[349674874,1737369043980,-500.0,0.00020855,2]
[349674875,1737369043992,-500.0,0.00020855,2]
[349674876,1737369044003,-500.0,0.00020855,2]
[349674877,1737369044015,-151.0,0.00020855,2]
[349674878,1737369044029,-151.0,0.00020855,2]
[349674879,1737369044042,-736.69,0.00020855,2]
[349674880,1737369044054,-157.389686,0.00020855,2]
[349674881,1737369044067,-500.0,0.00020855,2]
[349674882,1737369044079,-151.0,0.00020855,2]
[349674883,1737369044091,-500.0,0.00020855,2]
[349674884,1737369044103,-500.0,0.00020855,2]
[349674885,1737369044115,-500.0,0.00020855,2]
[349674886,1737369044127,-650.649365,0.00020855,2]
[349674887,1737369044140,-500.0,0.00020855,2]
[349674888,1737369044152,-500.0,0.00020855,2]
[349674889,1737369044164,-500.0,0.00020855,2]
[349674890,1737369044177,-428.329931,0.00020855,2]
[349674891,1737369044189,-428.329931,0.00020855,2]
[349674892,1737369044201,-500.0,0.00020855,2]
[349674893,1737369044213,-500.0,0.00020855,2]
[349674894,1737369044225,-500.0,0.00020855,2]
[349674895,1737369044238,-226.658262,0.00020855,2]
[349674896,1737369044250,-226.658262,0.00020855,2]
[349674897,1737369044262,-422.493309,0.00020855,2]
[349674898,1737369044274,-605.46,0.00020855,2]
[349674899,1737369044286,-500.0,0.00020855,2]
[349674900,1737369044299,-500.0,0.00020855,2]
[349674901,1737369044310,-151.0,0.00020855,2]
[349674902,1737369044323,-151.0,0.00020855,2]
[349674903,1737369044334,-576.59,0.00020855,2]
[349674904,1737369044346,-691.59,0.00020855,2]
[349674905,1737369044358,-377.46924135,0.00020855,2]
[349674906,1737369044371,-537.5,0.00020855,2]
[349674907,1737369044382,-683.64,0.00020855,2]
[349674908,1737369044394,-500.0,0.00020855,2]
[349674909,1737369044406,-500.0,0.00020855,2]
[349674910,1737369044418,-690.83,0.00020855,2]
[349674911,1737369044431,-500.0,0.00020855,2]
[349674912,1737369044446,-500.0,0.00020855,2]
[349674913,1737369044459,-500.0,0.00020855,2]
[349674914,1737369044471,-500.0,0.00020855,2]
[349674915,1737369044484,-500.0,0.00020855,2]
[349674916,1737369044495,-581.3,0.00020855,2]
[349674917,1737369044508,-151.0,0.00020855,2]
[349674918,1737369044521,-500.0,0.00020855,2]
[349674919,1737369044532,-500.0,0.00020855,2]
[349674920,1737369044545,-810.27,0.00020855,2]
[349674921,1737369044557,-151.0,0.00020855,2]
[349674922,1737369044569,-500.0,0.00020855,2]
[349674923,1737369044582,-521.05,0.00020855,2]
[349674924,1737369044595,-500.0,0.00020855,2]
[349674925,1737369044607,-500.0,0.00020855,2]
[349674926,1737369044620,-844.03,0.00020855,2]
[349674927,1737369044632,-579.46,0.00020855,2]
[349674928,1737369044641,-500.0,0.00020855,2]
[349674929,1737369044651,-1179.4,0.00020855,2]
[349674930,1737369044660,-193.58117083,0.00020855,2]
[349674931,1737369044839,-359.29952695,0.00020855,2]
[349674932,1737369044858,-500.0,0.00020855,2]
[349674933,1737369044872,-500.0,0.00020855,2]
[349674934,1737369044882,-477.956817,0.00020855,2]
[349674935,1737369044891,-3363.53,0.00020855,2]
[349674936,1737369044900,-937.27,0.00020855,2]
[349674937,1737369044909,-500.0,0.00020855,2]
[349674938,1737369044918,-477.956817,0.00020855,2]
[349674939,1737369044927,-1121.74,0.00020855,2]
[349674940,1737369044937,-500.0,0.00020855,2]
[349674941,1737369044946,-151.0,0.00020855,2]
[349674942,1737369044955,-500.0,0.00020855,2]
[349674943,1737369044964,-500.0,0.00020855,2]
[349674944,1737369044973,-787.57,0.00020855,2]
[349674945,1737369044982,-1241.44,0.00020855,2]
[349674946,1737369044991,-770.31,0.00020855,2]
[349674947,1737369044999,-500.0,0.00020855,2]
[349674948,1737369045009,-948.86,0.00020855,2]
[349674949,1737369045018,-543.14,0.00020855,2]
[349674950,1737369045026,-500.0,0.00020855,2]
[349674951,1737369045035,-500.0,0.00020855,2]
[349674952,1737369045044,-151.0,0.00020855,2]
[349674953,1737369045053,-674.31,0.00020855,2]
[349674954,1737369045062,-151.0,0.00020855,2]
[349674955,1737369045071,-500.0,0.00020855,2]
[349674956,1737369045080,-500.0,0.00020855,2]
[349674957,1737369045090,-620.23,0.00020855,2]
[349674958,1737369045098,-500.0,0.00020855,2]
[349674959,1737369045107,-1156.94,0.00020855,2]
[349674960,1737369045116,-151.0,0.00020855,2]
[349674961,1737369045125,-1044.78,0.00020855,2]
[349674962,1737369045133,-500.0,0.00020855,2]
[349674963,1737369045142,-962.64,0.00020855,2]
[349674964,1737369045152,-1744.31,0.00020855,2]
[349674965,1737369045161,-151.0,0.00020855,2]
[349674966,1737369045170,-866.07,0.00020855,2]
[349674967,1737369045180,-1965.63,0.00020855,2]
[349674968,1737369045189,-500.0,0.00020855,2]
[349674969,1737369045198,-500.0,0.00020855,2]
[349674970,1737369045207,-1360.03,0.00020855,2]
[349674971,1737369045217,-500.0,0.00020855,2]
[349674972,1737369045226,-543.03,0.00020855,2]
[349674973,1737369045236,-706.83,0.00020855,2]
[349674974,1737369045246,-762.83,0.00020855,2]
[349674975,1737369045255,-151.0,0.00020855,2]
[349674976,1737369045264,-1261.68,0.00020855,2]
[349674977,1737369045274,-1006.62,0.00020855,2]
[349674978,1737369045283,-601.42,0.00020855,2]
[349674979,1737369045292,-3021.11,0.00020855,2]
[349674980,1737369045301,-500.0,0.00020855,2]
[349674981,1737369045310,-1081.22,0.00020855,2]
[349674982,1737369045319,-500.0,0.00020855,2]
[349674983,1737369045331,-500.0,0.00020855,2]
[349674984,1737369045341,-500.0,0.00020855,2]
[349674985,1737369045351,-816.24,0.00020855,2]
[349674986,1737369045361,-1178.57,0.00020855,2]
[349674987,1737369045370,-500.0,0.00020855,2]
[349674988,1737369045379,-586.46,0.00020855,2]
[349674989,1737369045388,-151.0,0.00020855,2]
[349674990,1737369045397,-716.58,0.00020855,2]
[349674991,1737369045406,-927.39,0.00020855,2]
[349674992,1737369045415,-500.0,0.00020855,2]
[349674993,1737369045424,-1035.41,0.00020855,2]
[349674994,1737369045435,-500.0,0.00020855,2]
[349674995,1737369045447,-988.29,0.00020855,2]
[349674996,1737369045456,-500.0,0.00020855,2]
[349674997,1737369045465,-1808.1,0.00020855,2]
[349674998,1737369045474,-151.0,0.00020855,2]
[349674999,1737369045485,-1293.09,0.00020855,2]
[349675000,1737369045494,-677.4,0.00020855,2]
[349675001,1737369045503,-974.68,0.00020855,2]
[349675002,1737369045512,-1437.3,0.00020855,2]
[349675003,1737369045522,-2018.96,0.00020855,2]
[349675004,1737369045532,-500.0,0.00020855,2]
[349675005,1737369045541,-1443.5,0.00020855,2]
[349675006,1737369045550,-500.0,0.00020855,2]
[349675007,1737369045559,-790.05,0.00020855,2]
[349675008,1737369045569,-4625.34,0.00020855,2]
[349675009,1737369045578,-1033.28,0.00020855,2]
[349675010,1737369045588,-795.6,0.00020855,2]
[349675012,1737369045597,-500.0,0.00020855,2]
[349675014,1737369045607,-1377.1,0.00020855,2]
[349675015,1737369045616,-1162.22,0.00020855,2]
[349675016,1737369045625,-500.0,0.00020855,2]
[349675017,1737369045634,-500.11,0.00020855,2]
[349675018,1737369045644,-500.0,0.00020855,2]
[349675019,1737369045653,-2554.85,0.00020855,2]
[349675020,1737369045663,-999.36,0.00020855,2]
[349675021,1737369045672,-500.0,0.00020855,2]
[349675022,1737369045683,-500.0,0.00020855,2]
[349675023,1737369045693,-529.72,0.00020855,2]
[349675024,1737369045702,-583.97,0.00020855,2]
[349675025,1737369045712,-3437.23,0.00020855,2]
[349675026,1737369045722,-860.07,0.00020855,2]
[349675027,1737369045732,-500.0,0.00020855,2]
[349675028,1737369045741,-151.0,0.00020855,2]
[349675029,1737369045751,-500.0,0.00020855,2]
[349675030,1737369045760,-500.0,0.00020855,2]
[349675031,1737369045770,-231.459032,0.00020855,2]
[349675032,1737369045780,-614.64,0.00020855,2]
[349675033,1737369045790,-2333.81,0.00020855,2]
[349675034,1737369045799,-2204.6,0.00020855,2]
[349675035,1737369045809,-500.0,0.00020855,2]
[349675036,1737369045819,-500.0,0.00020855,2]
[349675037,1737369045829,-500.0,0.00020855,2]
[349675038,1737369045839,-1115.38,0.00020855,2]
[349675039,1737369045849,-500.0,0.00020855,2]
[349675040,1737369045859,-37865.69311491,0.00020856,2]
[349675041,1737369045868,-500.0,0.00020856,2]
[349675042,1737369045878,-500.0,0.00020856,2]
[349675043,1737369045888,-151.0,0.00020856,2]
[349675044,1737369045897,-154.051847,0.00020856,2]
[349675045,1737369045907,-354.71300553,0.00020856,2]
[349675046,1737369045918,-500.0,0.00020856,2]
[349675047,1737369045927,-500.0,0.00020856,2]
[349675048,1737369045940,-200.0,0.00020856,2]
[349675049,1737369045949,-500.0,0.00020856,2]
[349675050,1737369045959,-500.0,0.00020856,2]
[349675051,1737369045969,-500.0,0.00020856,2]
[349675052,1737369045979,-151.0,0.00020856,2]
[349675053,1737369045988,-500.0,0.00020856,2]
[349675054,1737369045998,-500.0,0.00020856,2]
[349675055,1737369046007,-612.75,0.00020856,2]
[349675056,1737369046016,-500.0,0.00020856,2]
[349675057,1737369046026,-500.0,0.00020856,2]
[349675058,1737369046035,-500.0,0.00020856,2]
[349675059,1737369046044,-500.0,0.00020856,2]
[349675061,1737369046053,-500.0,0.00020856,2]
[349675063,1737369046063,-500.0,0.00020856,2]
[349675065,1737369046072,-500.0,0.00020856,2]
[349675067,1737369046081,-500.0,0.00020856,2]
[349675069,1737369046091,-508.15,0.00020856,2]
[349675070,1737369046100,-151.0,0.00020856,2]
[349675072,1737369046109,-500.0,0.00020856,2]
[349675074,1737369046118,-500.0,0.00020856,2]
[349675077,1737369046128,-216.73,0.00020856,2]
[349675079,1737369046138,-500.0,0.00020856,2]
[349675081,1737369046147,-500.0,0.00020856,2]
[349675083,1737369046156,-151.0,0.00020856,2]
[349675085,1737369046166,-151.0,0.00020856,2]
[349675088,1737369046175,-500.0,0.00020856,2]
[349675091,1737369046186,-500.0,0.00020856,2]
[349675094,1737369046196,-500.0,0.00020856,2]
[349675096,1737369046205,-151.0,0.00020856,2]
[349675098,1737369046214,-500.0,0.00020856,2]
[349675100,1737369046224,-151.0,0.00020856,2]
[349675102,1737369046233,-500.0,0.00020856,2]
[349675104,1737369046243,-555.32,0.00020856,2]
[349675106,1737369046253,-151.0,0.00020856,2]
[349675108,1737369046262,-259.689979,0.00020856,2]
[349675110,1737369046271,-500.0,0.00020856,2]
[349675112,1737369046280,-151.0,0.00020856,2]
[349675114,1737369046289,-500.0,0.00020856,2]
[349675116,1737369046298,-500.0,0.00020856,2]
[349675118,1737369046308,-715.57,0.00020856,2]
[349675120,1737369046317,-500.0,0.00020856,2]
[349675122,1737369046326,-428.329931,0.00020856,2]
[349675124,1737369046336,-428.329931,0.00020856,2]
[349675126,1737369046345,-831.47,0.00020856,2]